[Event "POR-ch 2020"]
[Site "Portimao"]
[Date "2020.09.07"]
[Round "1.1"]
[White "Fernandes, Antonio"]
[Black "Rocha, Sergio"]
[Result "1/2-1/2"]
[ECO "B11"]
[WhiteElo "2359"]
[BlackElo "2341"]
[Annotator "ChessBase"]
[PlyCount "33"]
[EventDate "2020.09.07"]
[EventType "tourn"]
[EventCountry "POR"]
[SourceTitle "playchess.com"]
[Source "ChessBase"]
[SourceQuality "1"]
[TimeControl "5400+30"]

1. e4 {[%emt 0:00:00]} c6 {[%emt 0:00:00]} 2. Nc3 {[%emt 0:04:45]} d5 {[%emt 0:00:34]} 3. Nf3 {[%emt 0:00:09]} Bg4 {[%emt 0:00:17]} 4. h3 {[%emt 0:00:10]} Bxf3 {[%emt 0:00:07]} 5. Qxf3 {[%emt 0:00:02]} e6 {[%emt 0:00:16]} 6. d4 {[%emt 0:11:39]} Qb6 {[%emt 0:05:23]} 7. Bd3 {[%emt 0:12:26]} Nf6 {[%emt 0:01:21]} 8. O-O {[%emt 0:00:49]} Nbd7 {[%emt 0:05:24]} 9. e5 {[%emt 0:12:34]} Ng8 {[%emt 0:00:16]} 10. Ne2 {[%emt 0:00:12]} Ne7 {[%emt 0:01:21]} 11. Be3 {[%emt 0:21:01]} Ng6 {[%emt 0:03:41]} 12. Rfd1 {[%emt 0:15:58]} Be7 {[%emt 0:01:17]} 13. g3 {[%emt 0:00:07]} c5 {[%emt 0:07:28]} 14. c4 {[%emt 0:10:30]} dxc4 {[%emt 0:11:29]} 15. Bxc4 {[%emt 0:00:03]} O-O {[%emt 0:02:55]} 16. Qe4 {[%emt 0:05:37]} cxd4 {[%emt 0:07:14]} 17. Bxd4 {[%emt 0:00:04]} 1/2-1/2

[Event "POR-ch 2020"]
[Site "Portimao"]
[Date "2020.09.07"]
[Round "1.2"]
[White "Santos, Antonio P"]
[Black "Reis, Luis Sousa"]
[Result "0-1"]
[ECO "E10"]
[WhiteElo "2160"]
[BlackElo "2154"]
[Annotator "ChessBase"]
[PlyCount "70"]
[EventDate "2020.09.07"]
[EventType "tourn"]
[EventCountry "POR"]
[SourceTitle "playchess.com"]
[Source "ChessBase"]
[SourceQuality "1"]
[TimeControl "5400+30"]

1. d4 {[%emt 0:00:00]} Nf6 {[%emt 0:00:00]} 2. c4 {[%emt 0:00:00]} e6 {[%emt 0:00:17]} 3. Nf3 {[%emt 0:00:06]} c5 {[%emt 0:00:35]} 4. d5 {[%emt 0:00:10]} b5 {[%emt 0:00:38]} 5. Bg5 {[%emt 0:00:12]} exd5 {[%emt 0:01:21]} 6. cxd5 {[%emt 0:00:12]} h6 {[%emt 0:02:25]} 7. Bxf6 {[%emt 0:09:52]} Qxf6 {[%emt 0:00:22]} 8. Qc2 {[%emt 0:00:13]} Be7 {[%emt 0:07:03]} 9. e4 {[%emt 0:00:24]} Qb6 {[%emt 0:01:00]} 10. a4 {[%emt 0:07:11]} b4 {[%emt 0:04:46]} 11. Nbd2 {[%emt 0:00:17]} O-O {[%emt 0:01:59]} 12. Nc4 {[%emt 0:21:05]} Qc7 {[%emt 0:01:35]} 13. Bd3 {[%emt 0:13:03]} d6 {[%emt 0:05:37]} 14. O-O {[%emt 0:05:16]} Nd7 {[%emt 0:07:12]} 15. Rad1 {[%emt 0:07:52]} Ba6 {[%emt 0:04:37]} 16. Ne3 {[%emt 0:02:44]} Bxd3 {[%emt 0:01:13]} 17. Qxd3 {[%emt 0:00:08]} Bf6 {[%emt 0:01:54]} 18. Nc4 {[%emt 0:07:22]} Rfe8 {[%emt 0:01:39]} 19. Rfe1 {[%emt 0:03:59]} Nb6 {[%emt 0:07:54]} 20. Nxb6 {[%emt 0:06:02]} axb6 {[%emt 0:00:39]} 21. b3 {[%emt 0:00:02]} c4 {[%emt 0:06:13]} 22. bxc4 {[%emt 0:05:54]} Bc3 {[%emt 0:01:48]} 23. Re2 {[%emt 0:01:32]} Rxa4 {[%emt 0:06:41]} 24. Nh4 {[%emt 0:01:07]} Ra3 {[%emt 0:03:24]} 25. Nf5 {[%emt 0:03:02]} Be5 {[%emt 0:01:03]} 26. Qd2 {[%emt 0:00:10]} Qxc4 {[%emt 0:03:02]} 27. f4 {[%emt 0:00:12]} Bxf4 {[%emt 0:06:25]} 28. Qxf4 {[%emt 0:00:49]} Qxe2 {[%emt 0:00:24]} 29. Rf1 {[%emt 0:00:10]} Qxe4 {[%emt 0:10:49]} 30. Qxd6 {[%emt 0:00:18]} Qe5 {[%emt 0:01:47]} 31. Qxb4 {[%emt 0:00:18]} Ra1 {[%emt 0:00:27]} 32. Rxa1 {[%emt 0:02:17]} Qxa1+ {[%emt 0:00:13]} 33. Kf2 {[%emt 0:00:04]} Qf6 {[%emt 0:01:24]} 34. Qf4 {[%emt 0:00:21]} Qb2+ {[%emt 0:02:06]} 35. Kg3 {[%emt 0:01:59]} Qb3+ {[%emt 0:01:20]} 0-1

[Event "POR-ch 2020"]
[Site "Portimao"]
[Date "2020.09.07"]
[Round "1.3"]
[White "Fidalgo, Andre Neves"]
[Black "Dias, Paulo"]
[Result "0-1"]
[ECO "E04"]
[WhiteElo "2268"]
[BlackElo "2341"]
[Annotator "ChessBase"]
[PlyCount "152"]
[EventDate "2020.09.07"]
[EventType "tourn"]
[EventCountry "POR"]
[SourceTitle "playchess.com"]
[Source "ChessBase"]
[SourceQuality "1"]
[TimeControl "5400+30"]

1. d4 {[%emt 0:00:00]} Nf6 {[%emt 0:00:00]} 2. c4 {[%emt 0:00:00]} e6 {[%emt 0:00:00]} 3. g3 {[%emt 0:00:00]} d5 {[%emt 0:00:37]} 4. Nf3 {[%emt 0:00:09]} dxc4 {[%emt 0:00:07]} 5. Bg2 {[%emt 0:00:44]} c5 {[%emt 0:00:25]} 6. O-O {[%emt 0:02:06]} Nc6 {[%emt 0:00:06]} 7. Qa4 {[%emt 0:01:41]} Bd7 {[%emt 0:00:27]} 8. Qxc4 {[%emt 0:03:38]} b5 {[%emt 0:01:00]} 9. Qd3 {[%emt 0:02:59]} c4 {[%emt 0:01:23]} 10. Qd1 {[%emt 0:01:14]} Rc8 {[%emt 0:01:16]} 11. Bg5 {[%emt 0:04:58]} Be7 {[%emt 0:02:54]} 12. Nc3 {[%emt 0:01:52]} b4 {[%emt 0:08:39]} 13. Bxf6 {[%emt 0:03:54]} gxf6 {[%emt 0:02:47]} 14. Ne4 {[%emt 0:03:04]} O-O {[%emt 0:03:13]} 15. Rc1 {[%emt 0:07:54]} Na5 {[%emt 0:07:33]} 16. d5 {[%emt 0:22:53]} exd5 {[%emt 0:26:22]} 17. Qxd5 {[%emt 0:01:16]} f5 {[%emt 0:01:19]} 18. Neg5 {[%emt 0:08:49]} Be6 {[%emt 0:02:59]} 19. Qe5 {[%emt 0:12:22]} Bxg5 {[%emt 0:13:40]} 20. Nxg5 {[%emt 0:00:08]} Qxg5 {[%emt 0:00:16]} 21. Qxa5 {[%emt 0:00:07]} Qd2 {[%emt 0:00:48]} 22. Qe5 {[%emt 0:04:34]} Rfd8 {[%emt 0:03:04]} 23. Bb7 {[%emt 0:03:53]} Rb8 {[%emt 0:00:47]} 24. Ba6 {[%emt 0:02:25]} Qd4 {[%emt 0:04:40]} 25. Qxd4 {[%emt 0:00:34]} Rxd4 {[%emt 0:00:02]} 26. e3 {[%emt 0:00:11]} Rd2 {[%emt 0:02:54]} 27. Bxc4 {[%emt 0:00:08]} Bxc4 {[%emt 0:01:52]} 28. Rxc4 {[%emt 0:00:08]} Rxb2 {[%emt 0:00:09]} 29. Ra1 {[%emt 0:00:08]} Rd8 {[%emt 0:04:25]} 30. Rd4 {[%emt 0:07:37]} Rxd4 {[%emt 0:04:11]} 31. exd4 {[%emt 0:00:07]} Kf8 {[%emt 0:00:32]} 32. Kg2 {[%emt 0:00:42]} Ke7 {[%emt 0:00:57]} 33. Kf3 {[%emt 0:01:59]} Kd6 {[%emt 0:00:05]} 34. Ke3 {[%emt 0:01:08]} Kd5 {[%emt 0:01:01]} 35. h4 {[%emt 0:00:12]} a5 {[%emt 0:01:17]} 36. h5 {[%emt 0:01:51]} h6 {[%emt 0:01:35]} 37. f3 {[%emt 0:01:35]} a4 {[%emt 0:00:35]} 38. Kd3 {[%emt 0:00:17]} Rf2 {[%emt 0:00:39]} 39. Rb1 {[%emt 0:00:35]} Rxf3+ {[%emt 0:01:47]} 40. Ke2 {[%emt 0:00:06]} Rxg3 {[%emt 0:00:18]} 41. Rxb4 {[%emt 0:00:05]} Ra3 {[%emt 0:01:28]} 42. Rb6 {[%emt 0:00:09]} Kxd4 {[%emt 0:01:02]} 43. Rxh6 {[%emt 0:00:08]} Rxa2+ {[%emt 0:01:12]} 44. Kf3 {[%emt 0:00:28]} Ke5 {[%emt 0:00:48]} 45. Ra6 {[%emt 0:00:09]} Rh2 {[%emt 0:00:43]} 46. h6 {[%emt 0:01:38]} Rh3+ {[%emt 0:00:11]} 47. Kg2 {[%emt 0:00:11]} Rh5 {[%emt 0:00:16]} 48. Kg3 {[%emt 0:00:38]} a3 {[%emt 0:00:23]} 49. Rxa3 {[%emt 0:00:41]} Rxh6 {[%emt 0:00:11]} 50. Ra5+ {[%emt 0:00:38]} Kf6 {[%emt 0:00:02]} 51. Kf4 {[%emt 0:00:38]} Rh4+ {[%emt 0:00:06]} 52. Kf3 {[%emt 0:00:03]} Rc4 {[%emt 0:00:14]} 53. Rb5 {[%emt 0:00:37]} Kg5 {[%emt 0:00:48]} 54. Ra5 {[%emt 0:00:21]} Rc3+ {[%emt 0:00:19]} 55. Kf2 {[%emt 0:00:16]} Rb3 {[%emt 0:01:13]} 56. Ra7 {[%emt 0:00:31]} f6 {[%emt 0:00:09]} 57. Ra5 {[%emt 0:00:19]} Kg4 {[%emt 0:00:23]} 58. Ra6 {[%emt 0:00:08]} Rb2+ {[%emt 0:00:22]} 59. Kf1 {[%emt 0:00:36]} Kg5 {[%emt 0:01:25]} 60. Ra5 {[%emt 0:00:16]} Rb6 {[%emt 0:00:21]} 61. Kf2 {[%emt 0:00:17]} Kg4 {[%emt 0:00:16]} 62. Ra4+ {[%emt 0:01:25]} f4 {[%emt 0:00:06]} 63. Ra3 {[%emt 0:01:19]} f5 {[%emt 0:01:06]} 64. Rc3 {[%emt 0:00:24]} Rb2+ {[%emt 0:00:55]} 65. Kf1 {[%emt 0:00:06]} Rh2 {[%emt 0:00:30]} 66. Ra3 {[%emt 0:00:41]} Rh3 {[%emt 0:00:30]} 67. Ra8 {[%emt 0:00:16]} Rb3 {[%emt 0:00:22]} 68. Kf2 {[%emt 0:00:17]} Rb2+ {[%emt 0:00:03]} 69. Kf1 {[%emt 0:00:06]} Kg3 {[%emt 0:00:26]} 70. Rg8+ {[%emt 0:03:08]} Kf3 {[%emt 0:00:07]} 71. Kg1 {[%emt 0:00:08]} Rb1+ {[%emt 0:00:24]} 72. Kh2 {[%emt 0:00:09]} Kf2 {[%emt 0:00:37]} 73. Rg2+ {[%emt 0:00:55]} Ke3 {[%emt 0:00:12]} 74. Rg8 {[%emt 0:00:14]} f3 {[%emt 0:00:27]} 75. Re8+ {[%emt 0:00:05]} Kf4 {[%emt 0:00:39]} 76. Ra8 {[%emt 0:01:28]} f2 {[%emt 0:00:32]} 0-1

[Event "POR-ch 2020"]
[Site "Portimao"]
[Date "2020.09.07"]
[Round "1.5"]
[White "Diogo, Vasco"]
[Black "Veiga, Jose Francisco R P N"]
[Result "0-1"]
[ECO "C44"]
[WhiteElo "2207"]
[BlackElo "2344"]
[Annotator "ChessBase"]
[PlyCount "66"]
[EventDate "2020.09.07"]
[EventType "tourn"]
[EventCountry "POR"]
[SourceTitle "playchess.com"]
[Source "ChessBase"]
[SourceQuality "1"]
[TimeControl "5400+30"]

1. e4 {[%emt 0:00:00]} e5 {[%emt 0:00:00]} 2. Nf3 {[%emt 0:00:00]} Nc6 {[%emt 0:00:00]} 3. c3 {[%emt 0:01:11]} Nf6 {[%emt 0:10:50]} 4. d4 {[%emt 0:03:42]} exd4 {[%emt 0:10:19]} 5. e5 {[%emt 0:03:33]} Nd5 {[%emt 0:03:51]} 6. Bb5 {[%emt 0:03:21]} Be7 {[%emt 0:10:09]} 7. Nxd4 {[%emt 0:05:11]} Nxd4 {[%emt 0:06:41]} 8. Qxd4 {[%emt 0:01:36]} Nb6 {[%emt 0:07:20]} 9. Bf4 {[%emt 0:04:14]} O-O {[%emt 0:06:12]} 10. Nd2 {[%emt 0:07:08]} f6 {[%emt 0:11:18]} 11. Bc4+ {[%emt 0:10:07]} Kh8 {[%emt 0:02:51]} 12. Bd3 {[%emt 0:05:23]} c5 {[%emt 0:06:13]} 13. Qe3 {[%emt 0:07:42]} f5 {[%emt 0:03:32]} 14. Bg3 {[%emt 0:09:15]} d5 {[%emt 0:03:46]} 15. exd6 {[%emt 0:04:00]} Bxd6 {[%emt 0:02:28]} 16. Bxd6 {[%emt 0:01:16]} Qxd6 {[%emt 0:00:49]} 17. O-O-O {[%emt 0:01:26]} Be6 {[%emt 0:02:11]} 18. Bb1 {[%emt 0:06:48]} Qc6 {[%emt 0:02:38]} 19. Rhe1 {[%emt 0:01:32]} Rae8 {[%emt 0:00:49]} 20. Qh3 {[%emt 0:01:19]} Qa4 {[%emt 0:00:54]} 21. Re5 {[%emt 0:11:07]} Bxa2 {[%emt 0:02:40]} 22. Bxf5 {[%emt 0:01:38]} Bg8 {[%emt 0:00:33]} 23. Rxe8 {[%emt 0:04:00]} Rxe8 {[%emt 0:00:12]} 24. Qg4 {[%emt 0:00:30]} Qa1+ {[%emt 0:01:06]} 25. Kc2 {[%emt 0:00:26]} Qa2 {[%emt 0:00:03]} 26. Qf3 {[%emt 0:01:59]} Rf8 {[%emt 0:01:50]} 27. Qe4 {[%emt 0:02:28]} h6 {[%emt 0:01:20]} 28. g4 {[%emt 0:00:10]} Nc4 {[%emt 0:00:25]} 29. Nxc4 {[%emt 0:00:34]} Bxc4 {[%emt 0:00:02]} 30. Qxb7 {[%emt 0:00:43]} Qa4+ {[%emt 0:01:09]} 31. Kc1 {[%emt 0:00:13]} Bb3 {[%emt 0:00:38]} 32. Qe7 {[%emt 0:00:49]} Rxf5 {[%emt 0:01:16]} 33. Rd8+ {[%emt 0:00:34]} Kh7 {[%emt 0:00:05]} 0-1

[Event "POR-ch 2020"]
[Site "Portimao"]
[Date "2020.09.08"]
[Round "2.1"]
[White "Rocha, Sergio"]
[Black "Veiga, Jose Francisco R P N"]
[Result "1-0"]
[ECO "A48"]
[WhiteElo "2341"]
[BlackElo "2344"]
[Annotator "ChessBase"]
[PlyCount "69"]
[EventDate "2020.09.07"]
[EventType "tourn"]
[EventCountry "POR"]
[SourceTitle "playchess.com"]
[Source "ChessBase"]
[SourceQuality "1"]
[TimeControl "5400+30"]

1. Nf3 {[%emt 0:00:00]} Nf6 {[%emt 0:03:48]} 2. d4 {[%emt 0:00:00]} g6 {[%emt 0:00:07]} 3. e3 {[%emt 0:00:00]} Bg7 {[%emt 0:00:06]} 4. Bd3 {[%emt 0:00:01]} O-O {[%emt 0:00:12]} 5. b3 {[%emt 0:00:41]} d6 {[%emt 0:00:43]} 6. Bb2 {[%emt 0:00:08]} Nbd7 {[%emt 0:00:44]} 7. Nbd2 {[%emt 0:01:19]} e5 {[%emt 0:02:03]} 8. c4 {[%emt 0:02:55]} Re8 {[%emt 0:11:04]} 9. Bc2 {[%emt 0:03:33]} c6 {[%emt 0:02:15]} 10. Qb1 {[%emt 0:02:22]} Qe7 {[%emt 0:03:08]} 11. b4 {[%emt 0:07:21]} e4 {[%emt 0:10:19]} 12. Ng1 {[%emt 0:01:49]} d5 {[%emt 0:00:58]} 13. b5 {[%emt 0:01:59]} dxc4 {[%emt 0:07:59]} 14. bxc6 {[%emt 0:04:10]} bxc6 {[%emt 0:00:18]} 15. Ne2 {[%emt 0:00:32]} Nd5 {[%emt 0:13:43]} 16. O-O {[%emt 0:02:14]} Ba6 {[%emt 0:05:45]} 17. Re1 {[%emt 0:20:43]} f5 {[%emt 0:07:18]} 18. Qc1 {[%emt 0:00:57]} Qb4 {[%emt 0:11:38]} 19. a4 {[%emt 0:06:47]} Rab8 {[%emt 0:03:24]} 20. Ba3 {[%emt 0:02:34]} Qa5 {[%emt 0:00:06]} 21. Bd6 {[%emt 0:06:02]} Rb7 {[%emt 0:01:00]} 22. g4 {[%emt 0:01:04]} c5 {[%emt 0:03:07]} 23. gxf5 {[%emt 0:00:33]} gxf5 {[%emt 0:00:26]} 24. Ng3 {[%emt 0:00:17]} cxd4 {[%emt 0:01:19]} 25. exd4 {[%emt 0:02:56]} N5f6 {[%emt 0:01:34]} 26. Ndf1 {[%emt 0:03:26]} Qd5 {[%emt 0:04:59]} 27. Qf4 {[%emt 0:00:39]} Nf8 {[%emt 0:01:15]} 28. Ne3 {[%emt 0:01:40]} Qe6 {[%emt 0:01:01]} 29. Nexf5 {[%emt 0:01:59]} Ng6 {[%emt 0:00:08]} 30. Qg5 {[%emt 0:01:26]} Rb2 31. Bxe4 {[%emt 0:03:48]} c3 {[%emt 0:03:55]} 32. Nxg7 {[%emt 0:05:49]} Kxg7 {[%emt 0:00:51]} 33. Be5 {[%emt 0:00:21]} Kf7 {[%emt 0:00:40]} 34. Bxf6 {[%emt 0:03:08]} Qxf6 {[%emt 0:00:36]} 35. Bd5+ {[%emt 0:00:10]} 1-0

[Event "POR-ch 2020"]
[Site "Portimao"]
[Date "2020.09.08"]
[Round "2.3"]
[White "Dias, Paulo"]
[Black "Martins, Bruno Andre Leite"]
[Result "1/2-1/2"]
[ECO "A81"]
[WhiteElo "2341"]
[BlackElo "2248"]
[Annotator "ChessBase"]
[PlyCount "65"]
[EventDate "2020.09.07"]
[EventType "tourn"]
[EventCountry "POR"]
[SourceTitle "playchess.com"]
[Source "ChessBase"]
[SourceQuality "1"]
[TimeControl "5400+30"]

1. d4 {[%emt 0:02:56]} f5 {[%emt 0:00:32]} 2. g3 {[%emt 0:02:50]} Nf6 {[%emt 0:00:13]} 3. Bg2 {[%emt 0:00:08]} d6 {[%emt 0:00:21]} 4. c3 {[%emt 0:04:28]} g6 {[%emt 0:01:24]} 5. Nd2 {[%emt 0:02:15]} Bg7 {[%emt 0:06:15]} 6. e4 {[%emt 0:01:16]} fxe4 {[%emt 0:03:06]} 7. Nxe4 {[%emt 0:00:45]} Nxe4 {[%emt 0:00:37]} 8. Bxe4 {[%emt 0:00:07]} c6 {[%emt 0:02:06]} 9. h4 {[%emt 0:03:29]} O-O {[%emt 0:08:14]} 10. h5 {[%emt 0:05:06]} d5 {[%emt 0:04:11]} 11. Bd3 {[%emt 0:11:35]} Bf5 {[%emt 0:13:01]} 12. hxg6 {[%emt 0:05:10]} hxg6 {[%emt 0:00:35]} 13. Bxf5 {[%emt 0:05:06]} Rxf5 {[%emt 0:03:04]} 14. Qg4 {[%emt 0:02:49]} Qd6 {[%emt 0:06:40]} 15. Bf4 {[%emt 0:05:51]} Qe6+ {[%emt 0:06:24]} 16. Kf1 {[%emt 0:00:27]} Nd7 {[%emt 0:05:08]} 17. Nf3 {[%emt 0:01:42]} Nf8 {[%emt 0:07:51]} 18. Re1 {[%emt 0:02:14]} Qf7 {[%emt 0:04:14]} 19. Kg2 {[%emt 0:07:50]} Ne6 {[%emt 0:02:11]} 20. Bh6 {[%emt 0:10:01]} Rf8 {[%emt 0:04:04]} 21. Re3 {[%emt 0:01:36]} c5 {[%emt 0:08:03]} 22. Bxg7 {[%emt 0:01:11]} Nxg7 {[%emt 0:02:32]} 23. Rh6 {[%emt 0:05:27]} cxd4 {[%emt 0:00:53]} 24. cxd4 {[%emt 0:01:14]} Rf6 {[%emt 0:01:27]} 25. Qh4 {[%emt 0:06:12]} Nh5 {[%emt 0:01:23]} 26. Qg5 {[%emt 0:01:20]} Ng7 {[%emt 0:01:23]} 27. Qh4 {[%emt 0:03:14]} Nh5 {[%emt 0:00:12]} 28. Qg4 {[%emt 0:05:33]} Ng7 {[%emt 0:02:44]} 29. Qh4 {[%emt 0:01:36]} Nh5 {[%emt 0:00:12]} 30. Qg5 {[%emt 0:00:56]} Ng7 {[%emt 0:00:16]} 31. Ne5 Rxf2+ 32. Kh3 Qf5+ 33. Qxf5 1/2-1/2

[Event "POR-ch 2020"]
[Site "Portimao"]
[Date "2020.09.08"]
[Round "2.4"]
[White "Reis, Luis Sousa"]
[Black "Fidalgo, Andre Neves"]
[Result "0-1"]
[ECO "B31"]
[WhiteElo "2154"]
[BlackElo "2268"]
[Annotator "ChessBase"]
[PlyCount "104"]
[EventDate "2020.09.07"]
[EventType "tourn"]
[EventCountry "POR"]
[SourceTitle "playchess.com"]
[Source "ChessBase"]
[SourceQuality "1"]
[TimeControl "5400+30"]

1. Nf3 {[%emt 0:00:13]} c5 {[%emt 0:00:00]} 2. e4 {[%emt 0:02:37]} Nc6 {[%emt 0:00:00]} 3. Bb5 {[%emt 0:01:44]} g6 {[%emt 0:00:11]} 4. O-O {[%emt 0:02:31]} Bg7 {[%emt 0:00:16]} 5. Bxc6 {[%emt 0:02:19]} bxc6 {[%emt 0:00:40]} 6. d3 {[%emt 0:04:28]} Nh6 {[%emt 0:02:21]} 7. Nc3 {[%emt 0:05:03]} O-O {[%emt 0:01:43]} 8. Be3 {[%emt 0:02:38]} d6 {[%emt 0:04:38]} 9. h3 {[%emt 0:10:59]} f5 {[%emt 0:00:39]} 10. Qd2 {[%emt 0:01:11]} Nf7 {[%emt 0:00:51]} 11. Ng5 {[%emt 0:17:27]} Nxg5 {[%emt 0:21:55]} 12. Bxg5 {[%emt 0:00:15]} Rb8 {[%emt 0:00:09]} 13. Rab1 {[%emt 0:02:44]} Rf7 {[%emt 0:04:12]} 14. Rfe1 {[%emt 0:08:33]} Qf8 {[%emt 0:02:40]} 15. exf5 {[%emt 0:00:18]} Bxf5 {[%emt 0:06:10]} 16. Ne4 {[%emt 0:08:07]} e5 {[%emt 0:13:41]} 17. Be3 {[%emt 0:03:42]} Rfb7 {[%emt 0:01:47]} 18. c4 {[%emt 0:02:03]} Rb4 {[%emt 0:04:54]} 19. b3 {[%emt 0:01:40]} a5 {[%emt 0:05:56]} 20. Qc2 {[%emt 0:06:39]} Qd8 {[%emt 0:04:16]} 21. Bg5 {[%emt 0:03:17]} Qc7 {[%emt 0:00:11]} 22. Bd2 {[%emt 0:01:34]} R4b7 {[%emt 0:00:08]} 23. Nc3 {[%emt 0:01:30]} Qf7 {[%emt 0:00:42]} 24. Ne4 {[%emt 0:00:32]} Qc7 {[%emt 0:02:41]} 25. Nc3 {[%emt 0:00:09]} Qd8 {[%emt 0:00:52]} 26. Ne4 {[%emt 0:00:53]} Bf8 {[%emt 0:00:34]} 27. Bg5 {[%emt 0:01:36]} Qc7 {[%emt 0:00:34]} 28. Nc3 {[%emt 0:01:04]} Qf7 {[%emt 0:01:25]} 29. Na4 {[%emt 0:00:33]} Ra8 {[%emt 0:02:37]} 30. Rbd1 {[%emt 0:00:24]} h6 {[%emt 0:00:29]} 31. Be3 {[%emt 0:00:52]} g5 {[%emt 0:00:12]} 32. Qe2 {[%emt 0:00:18]} Qg6 {[%emt 0:01:30]} 33. f3 {[%emt 0:01:07]} Rf7 {[%emt 0:01:52]} 34. Bc1 {[%emt 0:01:01]} Be7 {[%emt 0:01:10]} 35. Nc3 {[%emt 0:01:07]} Raf8 {[%emt 0:00:23]} 36. Ne4 {[%emt 0:00:13]} Be6 {[%emt 0:01:01]} 37. Bd2 {[%emt 0:00:56]} h5 {[%emt 0:03:13]} 38. Nf2 {[%emt 0:03:10]} g4 {[%emt 0:02:44]} 39. hxg4 {[%emt 0:00:26]} hxg4 {[%emt 0:00:06]} 40. Nxg4 {[%emt 0:00:10]} Bxg4 {[%emt 0:00:36]} 41. fxg4 {[%emt 0:00:05]} Bh4 {[%emt 0:00:21]} 42. g3 {[%emt 0:01:46]} Bxg3 {[%emt 0:00:09]} 43. Qe4 {[%emt 0:01:18]} Qg7 {[%emt 0:00:07]} 44. Rf1 {[%emt 0:00:42]} Bf2+ {[%emt 0:02:49]} 45. Kg2 {[%emt 0:00:48]} d5 {[%emt 0:03:43]} 46. Qe2 {[%emt 0:00:15]} Qg6 {[%emt 0:01:15]} 47. Be1 {[%emt 0:01:43]} Rf4 {[%emt 0:01:18]} 48. Bxf2 {[%emt 0:00:42]} Rxg4+ {[%emt 0:00:08]} 49. Qxg4 {[%emt 0:00:06]} Qxg4+ {[%emt 0:00:06]} 50. Bg3 {[%emt 0:00:57]} Qe2+ {[%emt 0:00:09]} 51. Kg1 {[%emt 0:00:15]} Rf3 {[%emt 0:00:56]} 52. Bf2 {[%emt 0:00:43]} Rxf2 {[%emt 0:00:21]} 0-1

[Event "POR-ch 2020"]
[Site "Portimao"]
[Date "2020.09.12"]
[Round "7.2"]
[White "Diogo, Vasco"]
[Black "Fidalgo, Andre Neves"]
[Result "0-1"]
[ECO "B30"]
[WhiteElo "2207"]
[BlackElo "2268"]
[Annotator "ChessBase"]
[PlyCount "84"]
[EventDate "2020.09.07"]
[EventType "tourn"]
[EventCountry "POR"]
[SourceTitle "playchess.com"]
[Source "ChessBase"]
[SourceQuality "1"]
[TimeControl "5400+30"]

1. e4 {[%emt 0:00:00]} c5 {[%emt 0:00:00]} 2. Nf3 {[%emt 0:00:00]} Nc6 {[%emt 0:00:00]} 3. d3 {[%emt 0:01:50]} g6 {[%emt 0:00:00]} 4. g3 {[%emt 0:00:03]} Bg7 {[%emt 0:00:00]} 5. Bg2 {[%emt 0:00:05]} d6 {[%emt 0:00:05]} 6. O-O {[%emt 0:00:08]} Nf6 {[%emt 0:00:06]} 7. Re1 {[%emt 0:00:45]} O-O {[%emt 0:00:39]} 8. c3 {[%emt 0:00:11]} e5 {[%emt 0:00:07]} 9. a3 {[%emt 0:02:12]} h6 {[%emt 0:01:05]} 10. b4 {[%emt 0:00:20]} Be6 {[%emt 0:04:34]} 11. h3 {[%emt 0:03:47]} Qd7 {[%emt 0:01:09]} 12. Kh2 {[%emt 0:00:11]} b6 {[%emt 0:00:49]} 13. Nbd2 {[%emt 0:03:27]} Rad8 {[%emt 0:04:06]} 14. Rb1 {[%emt 0:01:21]} Nh7 {[%emt 0:02:34]} 15. Nf1 {[%emt 0:15:20]} f5 {[%emt 0:11:48]} 16. exf5 {[%emt 0:11:48]} gxf5 {[%emt 0:02:15]} 17. d4 {[%emt 0:07:31]} exd4 {[%emt 0:04:11]} 18. cxd4 {[%emt 0:01:22]} Ba2 {[%emt 0:07:06]} 19. Rb2 {[%emt 0:04:39]} Bf7 {[%emt 0:00:11]} 20. dxc5 {[%emt 0:01:33]} dxc5 {[%emt 0:05:06]} 21. Rd2 {[%emt 0:01:42]} Qc8 {[%emt 0:00:06]} 22. b5 {[%emt 0:02:56]} Nd4 {[%emt 0:05:27]} 23. Nxd4 {[%emt 0:09:37]} cxd4 {[%emt 0:00:46]} 24. Rc2 {[%emt 0:04:14]} Qd7 25. Bc6 Qd6 {[%emt 0:01:36]} 26. Qd3 {[%emt 0:00:40]} Ng5 {[%emt 0:03:10]} 27. Bf4 {[%emt 0:01:02]} Qg6 {[%emt 0:00:11]} 28. Nd2 {[%emt 0:01:58]} Ne6 {[%emt 0:00:25]} 29. Be5 {[%emt 0:01:15]} Nc5 {[%emt 0:02:06]} 30. Qf3 {[%emt 0:07:21]} f4 {[%emt 0:00:51]} 31. Rcc1 {[%emt 0:04:14]} fxg3+ {[%emt 0:00:27]} 32. Bxg3 {[%emt 0:01:12]} Be6 {[%emt 0:05:23]} 33. Qe2 {[%emt 0:00:33]} Qf5 {[%emt 0:01:49]} 34. Rxc5 {[%emt 0:00:22]} Qxh3+ {[%emt 0:01:26]} 35. Kg1 {[%emt 0:00:03]} bxc5 {[%emt 0:00:44]} 36. Qxe6+ {[%emt 0:00:24]} Qxe6 {[%emt 0:00:08]} 37. Rxe6 {[%emt 0:00:03]} d3 {[%emt 0:01:01]} 38. Kf1 {[%emt 0:02:54]} c4 {[%emt 0:01:32]} 39. Re7 {[%emt 0:05:43]} Bf6 {[%emt 0:03:16]} 40. Rxa7 {[%emt 0:02:09]} c3 {[%emt 0:00:09]} 41. Nb3 {[%emt 0:00:53]} d2 {[%emt 0:00:32]} 42. Bf3 {[%emt 0:01:02]} c2 {[%emt 0:00:11]} 0-1